fUST/lending_fUST_20250806
["ID","MTS","AMOUNT","RATE_DAILY","PERIOD"]
[377469016,1754418756180,-500.0,0.00024649,2]
[377469017,1754418756202,-500.0,0.00024649,2]
[377469018,1754418756224,-500.0,0.00024649,2]
[377469019,1754418756245,-500.0,0.00024649,2]
[377469020,1754418756269,-500.0,0.00024649,2]
[377469021,1754418756290,-500.0,0.00024649,2]
[377469022,1754418756310,-153.46062096,0.00024649,2]
[377469023,1754418756333,-500.0,0.00024649,2]
[377469024,1754418756356,-411.72558098,0.00024649,2]
[377469025,1754418756377,-500.0,0.00024649,2]
[377469026,1754418756399,-500.0,0.00024649,2]
[377469027,1754418756422,-336.69723558,0.00024649,2]
[377469028,1754418756451,-500.0,0.00024649,2]
[377469029,1754418756474,-500.0,0.00024649,2]
[377469030,1754418756496,-169.68600155,0.00024649,2]
[377469031,1754418756521,-500.0,0.00024649,2]
[377469032,1754418756542,-160.0,0.00024649,2]
[377469033,1754418756565,-49912.97442041,0.00024649,2]
[377469035,1754418825661,-500.0,0.00024649,2]
[377469036,1754418825683,-500.0,0.00024649,2]
[377469037,1754418825704,-160.0,0.00024649,2]
[377469038,1754418825726,-39.0,0.00024649,2]
[377469039,1754418894542,-264.027736,0.00024614,2]
[377469040,1754418894564,-48.02557959,0.00024649,2]
[377469041,1754418894586,-347.898564,0.00024754,2]
[377469042,1754418894609,-12077.04812041,0.00024964,2]
[377469044,1754418973652,-160.0,0.00024964,2]
[377469045,1754418973674,-215.0,0.00024964,2]
[377469046,1754419039510,-24900.0,0.00024751,2]
[377469047,1754419039533,-30944.0,0.00024751,2]
[377469049,1754419127961,-7673.0076919,0.00024737,2]
[377469050,1754419127984,-116.9923081,0.00024737,2]
[377469052,1754419167452,395.138313,0.00013699,2]
[377469053,1754419167696,395.138313,0.00020187,2]
[377469055,1754419198712,-1000.0,0.00024609,2]
[377469056,1754419198734,-811.0,0.00024636,2]
[377469057,1754419267043,160.0,0.0002,3]
[377469058,1754419272740,4738.0,0.00025205,5]
[377469061,1754419389927,-243.7008018,0.0002453,2]
[377469062,1754419389948,-666.0,0.0002458,2]
[377469063,1754419389969,-23.2991982,0.00024636,2]
[377469071,1754419529987,-42.32035999,0.00024636,2]
[377469072,1754419530009,-30.4093204,0.00024751,2]
[377469073,1754419530030,-79.28717509,0.00024964,2]
[377469074,1754419530052,-7.10331207,0.00025337,2]
[377469076,1754419555987,-159.12016755,0.00024691,2]
[377469077,1754419557452,-193.45244103,0.00024691,2]
[377469078,1754419560718,-27.42739142,0.00024691,2]
[377469079,1754419560742,-150.85371344,0.00025337,2]
[377469080,1754419564068,-306.54755897,0.00025337,2]
[377469081,1754419568252,-266.42511004,0.00025337,2]
[377469083,1754419572109,-21.88491884,0.00025337,2]
[377469084,1754419572131,-144.20385375,0.00025641,2]
[377469085,1754419576459,-15.79614625,0.00025641,2]
[377469086,1754419576482,-238.94917962,0.00025642,2]
[377469087,1754419581055,-509.25867163,0.00025642,2]
[377469088,1754419584385,-289.25730607,0.00025642,2]
[377469089,1754419589675,-162.53484268,0.00025642,2]
[377469090,1754419589697,-52.43002079,0.00025642,2]
[377469093,1754419591329,-247.56997921,0.00025642,2]
[377469094,1754419591352,-123.60482152,0.00025642,2]
[377469095,1754419600307,-164.05477685,0.00025543,2]
[377469096,1754419600331,-40.62213208,0.00025641,2]
[377469097,1754419603260,-123.43264477,0.00025641,2]
[377469098,1754419603284,-176.39517848,0.00025642,2]
[377469099,1754419603307,-2.6472739,0.00025642,2]
[377469100,1754419606724,-211.3437936,0.00025642,2]
[377469101,1754419609988,-262.48006178,0.00025642,2]
[377469102,1754419614621,-202.46923716,0.00025642,2]
[377469103,1754419618108,-362.32290436,0.00025642,2]
[377469104,1754419620294,-158.7367292,0.00025642,2]
[377469105,1754419620318,-141.08805345,0.00025643,2]
[377469106,1754419629634,-273.30277764,0.00025515,16]
[377469107,1754419631223,-296.32496013,0.00025515,16]
[377469108,1754419633871,-153.50768169,0.00025515,16]
[377469109,1754419637655,-194.94826949,0.00025515,16]
[377469110,1754419639178,-0.74888958,0.00025515,16]
[377469111,1754419639210,-272.69817542,0.00025655,2]
[377469112,1754419643315,-159.58,0.00025655,2]
[377469113,1754419644804,-262.13889514,0.00025655,2]
[377469114,1754419648197,-178.28110486,0.00025655,2]
[377469115,1754419652871,-37.5970725,0.00025655,2]
[377469116,1754419652895,-132.43047179,0.00025738,2]
[377469117,1754419655999,-167.56952821,0.00025738,2]
[377469118,1754419656022,-10.70655751,0.00025739,2]
[377469119,1754419657490,-210.21833695,0.00025739,2]
[377469120,1754419661520,-163.97183089,0.00025739,2]
[377469121,1754419665317,-115.10327465,0.00025739,2]
[377469122,1754419665341,-86.78652891,0.00025739,2]
[377469123,1754419670190,-193.10734889,0.00025739,2]
[377469125,1754419675010,-220.1061222,0.00025739,2]
[377469126,1754419675035,-71.14764162,0.00025739,2]
[377469127,1754419676945,-359.43615588,0.00025739,2]
[377469128,1754419679973,-69.4162025,0.00025739,2]
[377469129,1754419679999,-102.90833693,0.00025739,2]
[377469130,1754419681627,-155.56730839,0.00025739,2]
[377469131,1754419685330,-298.6704313,0.00025738,2]
[377469132,1754419689391,-1.3295687,0.00025738,2]
[377469133,1754419689413,-222.37588094,0.00025739,2]
[377469134,1754419693036,-170.02754429,0.00025639,2]
[377469135,1754419693057,-19.14847374,0.00025739,2]
[377469136,1754419693081,-35.99614892,0.00025739,2]
[377469137,1754419696789,-161.5587871,0.00025739,2]
[377469138,1754419698217,-194.382409,0.00025739,2]
[377469139,1754419702312,-366.27158552,0.00024742,2]
[377469140,1754419703800,-189.0056327,0.00024742,2]
[377469141,1754419705374,-239.77685897,0.00024742,2]
[377469142,1754419709118,-327.65431307,0.00024742,2]
[377469143,1754419711267,-202.77019644,0.00024742,2]
[377469144,1754419713479,-247.93067388,0.00024742,2]
[377469145,1754419716618,-5516.0,0.00024742,2]
[377469146,1754419717731,-40.96878662,0.00024742,2]
[377469147,1754419717754,-154.503266,0.00025734,10]
[377469148,1754419719288,-176.676734,0.00025734,10]
[377469149,1754419719311,-37.34703699,0.00025738,2]
[377469150,1754419721807,-151.70508104,0.00025738,2]
[377469151,1754419724756,-153.27945065,0.00025738,2]
[377469152,1754419727975,-157.66843132,0.00025738,2]
[377469153,1754419728000,-129.67479068,0.00025738,2]
[377469154,1754419733553,-294.33097484,0.00025738,2]
[377469155,1754419736921,-237.7929387,0.00025738,2]
[377469156,1754419740809,-151.58342283,0.00025638,2]
[377469157,1754419742923,-188.13887944,0.00025638,2]
[377469158,1754419749999,-342.67823422,0.00023415,2]
[377469159,1754419751697,-228.32709242,0.00023415,2]
[377469160,1754419751720,-113.61981146,0.00025638,2]
[377469161,1754419753966,-380.65881262,0.00025638,2]
[377469164,1754419757551,-172.35598676,0.00025638,2]
[377469165,1754419759745,-184.38411863,0.00025638,2]
[377469166,1754419761179,-277.18971478,0.00025638,2]
[377469167,1754419764223,-266.740566,0.00025638,2]
[377469168,1754419767931,-254.4979445,0.00025638,2]
[377469169,1754419772311,-199.1146921,0.00025638,2]
[377469170,1754419774171,521.2385105,0.00025205,5]
[377469171,1754419774266,-291.01098114,0.00025638,2]
[377469172,1754419777441,-275.10402808,0.00025638,2]
[377469173,1754419780868,-192.23389594,0.00025638,2]
[377469174,1754419782360,-255.48667945,0.00025638,2]
[377469175,1754419789299,-205.75883622,0.00025638,2]
[377469176,1754419791857,921.93929557,0.00025205,5]
[377469177,1754419792901,-259.34840121,0.00025638,2]
[377469179,1754419797166,-460.0,0.00025638,2]
[377469180,1754419798638,-431.31486536,0.00025638,2]
[377469181,1754419806906,-318.08310726,0.00025638,2]
[377469182,1754419808314,925.10723743,0.00025205,5]
[377469183,1754419814913,-211.222188,0.00024738,2]
[377469184,1754419814937,-162.01141462,0.00025638,2]
[377469185,1754419820579,-278.29680352,0.00025638,2]
[377469186,1754419823637,-235.00998944,0.00025638,2]
[377469187,1754419823660,-32.68346203,0.00025734,10]
[377469188,1754419824924,373.23360262,0.00025205,5]
[377469189,1754419829478,-189.96256117,0.00025737,2]
[377469190,1754419831092,-110.03743883,0.00025737,2]
[377469191,1754419831115,-85.48559725,0.00025737,2]
[377469244,1754419832683,-299.48,0.00025734,10]
[377469246,1754419832692,-1114.51440275,0.00025737,2]
[377469248,1754419832702,-500.0,0.00025737,2]
[377469250,1754419832711,-189.49448085,0.00025737,2]
[377469252,1754419832721,-2477.25075375,0.00025738,2]
[377469253,1754419832736,-3787.96728801,0.00025738,2]
[377469276,1754419833112,-167.69,0.00024739,2]
[377469290,1754419834619,-199.05711914,0.00024739,2]
[377469292,1754419838479,-12824.27130366,0.00024739,2]
[377469293,1754419838489,-500.0,0.00025737,2]
[377469294,1754419838498,-500.0,0.00025737,2]
[377469295,1754419838508,-500.0,0.00025737,2]
[377469296,1754419838517,-500.0,0.00025737,2]
[377469297,1754419838527,-500.0,0.00025737,2]
[377469298,1754419838536,-500.0,0.00025737,2]
[377469299,1754419838545,-500.0,0.00025737,2]
[377469300,1754419838554,-500.0,0.00025737,2]
[377469301,1754419838564,-500.0,0.00025737,2]
[377469302,1754419838572,-500.0,0.00025737,2]
[377469303,1754419838581,-500.0,0.00025737,2]
[377469304,1754419838590,-162.3188517,0.00025737,2]
[377469305,1754419838599,-500.0,0.00025737,2]
[377469306,1754419838608,-500.0,0.00025737,2]
[377469307,1754419838620,-500.0,0.00025737,2]
[377469308,1754419838628,-500.0,0.00025737,2]
[377469309,1754419838637,-500.0,0.00025737,2]
[377469310,1754419838646,-501.9808262,0.00025737,2]
[377469311,1754419838656,-500.0,0.00025737,2]
[377469312,1754419838665,-500.0,0.00025737,2]
[377469313,1754419838678,-500.0,0.00025737,2]
[377469314,1754419838687,-500.0,0.00025737,2]
[377469315,1754419838695,-500.0,0.00025737,2]
[377469316,1754419838704,-500.0,0.00025737,2]
[377469317,1754419838713,-500.0,0.00025737,2]
[377469318,1754419838722,-500.0,0.00025737,2]
[377469319,1754419838731,-500.0,0.00025737,2]
[377469320,1754419838741,-500.0,0.00025737,2]
[377469321,1754419838751,-480.67864548,0.00025737,2]
[377469322,1754419838760,-500.0,0.00025737,2]
[377469323,1754419838770,-500.0,0.00025737,2]
[377469324,1754419838779,-500.0,0.00025737,2]
[377469325,1754419838789,-500.0,0.00025737,2]
[377469326,1754419838799,-500.0,0.00025737,2]
[377469327,1754419838808,-500.0,0.00025737,2]
[377469328,1754419838818,-500.0,0.00025737,2]
[377469329,1754419838839,-500.0,0.00025737,2]
[377469330,1754419838850,-500.0,0.00025737,2]
[377469331,1754419838860,-500.0,0.00025737,2]
[377469332,1754419838871,-500.0,0.00025737,2]
[377469333,1754419838881,-328.96110612,0.00025737,2]
[377469334,1754419838891,-500.0,0.00025737,2]
[377469335,1754419838903,-500.0,0.00025737,2]
[377469336,1754419838913,-500.0,0.00025737,2]
[377469337,1754419838924,-500.0,0.00025737,2]
[377469338,1754419838933,-500.0,0.00025737,2]
[377469339,1754419838943,-500.0,0.00025737,2]
[377469340,1754419838952,-500.0,0.00025737,2]
[377469342,1754419838962,-500.0,0.00025737,2]
[377469344,1754419838978,-600.92606104,0.00025737,2]
[377469345,1754419838993,-500.0,0.00025737,2]
[377469347,1754419839004,-500.0,0.00025737,2]
[377469349,1754419839013,-500.0,0.00025737,2]
[377469351,1754419839024,-500.0,0.00025737,2]
[377469352,1754419839034,-500.0,0.00025737,2]
[377469354,1754419839044,-500.0,0.00025737,2]
[377469355,1754419839054,-500.0,0.00025737,2]
[377469356,1754419839064,-500.0,0.00025737,2]
[377469357,1754419839074,-500.0,0.00025737,2]
[377469358,1754419839084,-500.0,0.00025737,2]
[377469359,1754419839094,-500.0,0.00025737,2]
[377469360,1754419839104,-500.0,0.00025737,2]
[377469361,1754419839116,-500.0,0.00025737,2]
[377469363,1754419839126,-500.0,0.00025737,2]
[377469365,1754419839136,-299.65027484,0.00025737,2]
[377469366,1754419839318,-500.0,0.00025737,2]
[377469367,1754419839329,-500.0,0.00025737,2]
[377469368,1754419839339,-500.0,0.00025737,2]
[377469369,1754419839349,-429.86948654,0.00025737,2]
[377469370,1754419839364,-500.0,0.00025737,2]
[377469371,1754419839374,-500.0,0.00025737,2]
[377469372,1754419839383,-500.0,0.00025737,2]
[377469373,1754419839394,-500.0,0.00025737,2]
[377469374,1754419839403,-354.5819681,0.00025737,2]
[377469375,1754419839413,-43202.6580447,0.00025738,2]
[377469376,1754419839422,-160.0,0.00025739,2]
[377469377,1754419839433,-197.4,0.0002574,11]
[377469378,1754419839442,-41267.5604823,0.00025745,2]
[377469379,1754419839452,-247605.362894,0.00025754,2]
[377469380,1754419839461,-370000.0,0.00025764,2]
[377469381,1754419839471,-500.0,0.00025773,2]
[377469382,1754419839480,-500.0,0.00025773,2]
[377469383,1754419839490,-500.0,0.00025773,2]
[377469384,1754419839499,-391.52516743,0.00026246,2]
[377469385,1754419839509,-781.87100811,0.00026246,2]
[377469386,1754419839518,-1566.10066973,0.00026264,2]
[377469387,1754419839527,-1000.0,0.00026321,2]
[377469388,1754419839536,-1000.0,0.00026321,2]
[377469389,1754419839545,-910.29524789,0.00026466,2]
[377469390,1754419839554,-395.138313,0.00026676,2]
[377469391,1754419839564,-151.0,0.00026742,2]
[377469392,1754419839573,-151.0,0.00026742,2]
[377469393,1754419839582,-151.0,0.00026742,2]
[377469394,1754419839591,-151.0,0.00026742,2]
[377469395,1754419839601,-151.0,0.00026742,2]
[377469396,1754419839611,-151.0,0.00026742,2]
[377469397,1754419839620,-151.0,0.00026742,2]
[377469398,1754419839630,-151.0,0.00026742,2]
[377469399,1754419839639,-151.0,0.00026742,2]
[377469400,1754419839649,-151.0,0.00026742,2]
[377469401,1754419839657,-151.0,0.00026742,2]
[377469402,1754419839667,-300.0,0.00026742,2]
[377469403,1754419839676,-300.0,0.00026742,2]
[377469404,1754419839685,-151.0,0.00026742,2]
[377469405,1754419839694,-300.0,0.00026742,2]
[377469406,1754419839703,-151.0,0.00026742,2]
[377469407,1754419839712,-300.0,0.00026742,2]
[377469408,1754419839722,-300.0,0.00026742,2]
[377469409,1754419839731,-151.0,0.00026742,2]
[377469410,1754419839741,-300.0,0.00026742,2]
[377469411,1754419839750,-300.0,0.00026742,2]
[377469412,1754419839760,-151.0,0.00026742,2]
[377469413,1754419839770,-300.0,0.00026742,2]
[377469414,1754419839779,-300.0,0.00026742,2]
[377469415,1754419839790,-151.0,0.00026742,2]
[377469416,1754419839799,-300.0,0.00026742,2]
[377469417,1754419839810,-151.0,0.00026742,2]
[377469418,1754419839821,-300.0,0.00026742,2]
[377469419,1754419839831,-300.0,0.00026742,2]
[377469420,1754419839842,-151.0,0.00026742,2]
[377469421,1754419839853,-300.0,0.00026742,2]
[377469422,1754419839863,-151.0,0.00026742,2]
[377469423,1754419839873,-300.0,0.00026742,2]
[377469424,1754419839882,-151.0,0.00026742,2]
[377469425,1754419839892,-300.0,0.00026742,2]
[377469426,1754419839902,-300.0,0.00026742,2]
[377469427,1754419839911,-300.0,0.00026742,2]
[377469428,1754419839922,-151.0,0.00026742,2]
[377469429,1754419839931,-151.0,0.00026742,2]
[377469430,1754419839940,-22188.54324152,0.00026742,2]
[377469431,1754419839950,-151.0,0.00026742,2]
[377469432,1754419839959,-151.0,0.00026742,2]
[377469433,1754419839969,-151.0,0.00026742,2]
[377469434,1754419839978,-151.0,0.00026742,2]
[377469435,1754419839987,-151.0,0.00026742,2]
[377469436,1754419839996,-151.0,0.00026742,2]
[377469437,1754419840006,-151.0,0.00026742,2]
[377469438,1754419840016,-151.0,0.00026742,2]
[377469439,1754419840026,-151.0,0.00026742,2]
[377469440,1754419840035,-1602.37989115,0.00026868,2]
[377469441,1754419840045,-1500.0,0.00026868,2]
[377469442,1754419840055,-160.0,0.00027,3]
[377469443,1754419840065,-12655.02535889,0.00027,3]
[377469444,1754419840074,-12655.02535889,0.00027,3]
[377469445,1754419840084,-842.25606042,0.00027,3]
[377469446,1754419840093,-160.0,0.00027,3]
[377469447,1754419840102,-461.15695721,0.00027,3]
[377469448,1754419840112,-461.15695721,0.00027,3]
[377469449,1754419840122,-461.15695721,0.00027,3]
[377469450,1754419840131,-160.0,0.00027,3]
[377469451,1754419840141,-160.0,0.00027,3]
[377469452,1754419840150,-231.72586818,0.00027,3]
[377469453,1754419840160,-240.65,0.00027046,2]
[377469454,1754419840169,-910.29524789,0.00027278,2]
[377469455,1754419840179,-500.0,0.00027373,2]
[377469457,1754419840188,-500.0,0.00027373,2]
[377469458,1754419840198,-500.0,0.00027373,2]
[377469459,1754419840207,-500.0,0.00027373,2]
[377469460,1754419840217,-454.38056172,0.00027397,2]
[377469461,1754419840226,-388.24448206,0.00027397,2]
[377469462,1754419840235,-460.0,0.00027397,2]
[377469463,1754419840244,-460.0,0.00027397,2]
[377469464,1754419840254,-214.37851925,0.00027397,2]
[377469465,1754419840264,-460.0,0.00027397,2]
[377469466,1754419840274,-460.0,0.00027397,2]
[377469467,1754419840283,-460.0,0.00027397,2]
[377469468,1754419840293,-460.0,0.00027397,2]
[377469469,1754419840303,-460.0,0.00027397,2]
[377469470,1754419840313,-460.0,0.00027397,2]
[377469471,1754419840323,-460.0,0.00027397,2]
[377469472,1754419840333,-460.0,0.00027397,2]
[377469473,1754419840343,-460.36,0.00027397,2]
[377469474,1754419840355,-460.0,0.00027397,2]
[377469475,1754419840375,-460.0,0.00027397,2]
[377469476,1754419840385,-494.75302883,0.00027397,2]
[377469477,1754419840395,-801.41,0.00027397,2]
[377469478,1754419840404,-460.0,0.00027397,2]
[377469479,1754419840414,-460.0,0.00027397,2]
[377469480,1754419840423,-460.0,0.00027397,2]
[377469481,1754419840433,-460.0,0.00027397,2]
[377469482,1754419840443,-789.85,0.00027397,2]
[377469483,1754419840452,-460.0,0.00027397,2]
[377469484,1754419840462,-460.0,0.00027397,2]
[377469485,1754419840472,-460.0,0.00027397,2]
[377469486,1754419840481,-460.0,0.00027397,2]
[377469487,1754419840491,-460.0,0.00027397,2]
[377469488,1754419840500,-460.0,0.00027397,2]
[377469489,1754419840510,-460.0,0.00027397,2]
[377469490,1754419840519,-460.0,0.00027397,2]
[377469491,1754419840528,-460.0,0.00027397,2]
[377469492,1754419840538,-460.0,0.00027397,2]
[377469493,1754419840547,-460.0,0.00027397,2]
[377469494,1754419840556,-263.01861444,0.00027397,2]
[377469495,1754419840566,-522.33,0.00027397,2]
[377469496,1754419840576,-460.0,0.00027397,2]
[377469497,1754419840585,-460.0,0.00027397,2]
[377469498,1754419840595,-460.0,0.00027397,2]
[377469499,1754419840604,-460.0,0.00027397,2]
[377469500,1754419840615,-1079.38,0.00027397,2]
[377469501,1754419840625,-460.0,0.00027397,2]
[377469502,1754419840634,-460.0,0.00027397,2]
[377469503,1754419840644,-460.0,0.00027397,2]
[377469504,1754419840653,-460.0,0.00027397,2]
[377469505,1754419840663,-3041.31,0.00027397,2]
[377469506,1754419840672,-460.0,0.00027397,2]
[377469507,1754419840681,-460.0,0.00027397,2]
[377469508,1754419840691,-500.0,0.00027397,2]
[377469509,1754419840700,-451.45536678,0.00027397,2]
[377469510,1754419840709,-475.93140637,0.00027397,2]
[377469511,1754419840719,-837.92,0.00027397,2]
[377469512,1754419840728,-460.0,0.00027397,2]
[377469513,1754419840737,-460.0,0.00027397,2]
[377469514,1754419840746,-460.0,0.00027397,2]
[377469515,1754419840755,-820.86,0.00027397,2]
[377469516,1754419840764,-994.47,0.00027397,2]
[377469517,1754419840773,-460.0,0.00027397,2]
[377469518,1754419840783,-460.0,0.00027397,2]
[377469519,1754419840792,-719.43,0.00027397,2]
[377469520,1754419840801,-230.77650921,0.00027397,2]
[377469521,1754419840811,-460.0,0.00027397,2]
[377469522,1754419840820,-460.0,0.00027397,2]
[377469523,1754419840829,-460.0,0.00027397,2]
[377469524,1754419840838,-460.0,0.00027397,2]
[377469525,1754419840847,-460.0,0.00027397,2]
[377469526,1754419840856,-460.0,0.00027397,2]
[377469527,1754419840868,-460.0,0.00027397,2]
[377469528,1754419840877,-460.0,0.00027397,2]
[377469529,1754419840887,-467.54775354,0.00027397,2]
[377469530,1754419840896,-483.6,0.00027397,2]
[377469531,1754419840905,-463.11,0.00027397,2]
[377469532,1754419840915,-769.44,0.00027397,2]
[377469533,1754419840924,-460.0,0.00027397,2]
[377469534,1754419840933,-460.0,0.00027397,2]
[377469535,1754419840943,-563.71,0.00027397,2]
[377469536,1754419840951,-499.78,0.00027397,2]
[377469537,1754419840961,-460.0,0.00027397,2]
[377469538,1754419840971,-500.0,0.00027397,2]
[377469539,1754419840980,-460.0,0.00027397,2]
[377469540,1754419840989,-904.26,0.00027397,2]
[377469541,1754419840999,-1124.32,0.00027397,2]
[377469542,1754419841008,-460.0,0.00027397,2]
[377469543,1754419841018,-460.0,0.00027397,2]
[377469544,1754419841027,-188.53450768,0.00027397,2]
[377469545,1754419841036,-460.0,0.00027397,2]
[377469546,1754419841046,-460.0,0.00027397,2]
[377469547,1754419841055,-460.0,0.00027397,2]
[377469548,1754419841065,-38601.17,0.00027397,2]
[377469549,1754419841075,-460.0,0.00027397,2]
[377469550,1754419841084,-460.0,0.00027397,2]
[377469551,1754419841094,-460.0,0.00027397,2]
[377469552,1754419841103,-460.0,0.00027397,2]
[377469553,1754419841115,-460.0,0.00027397,2]
[377469554,1754419841124,-460.0,0.00027397,2]
[377469555,1754419841134,-2382.03,0.00027397,2]
[377469556,1754419841145,-460.0,0.00027397,2]
[377469557,1754419841154,-460.0,0.00027397,2]
[377469558,1754419841163,-1199.19,0.00027397,2]
[377469559,1754419841173,-466.38677929,0.00027397,2]
[377469560,1754419841183,-460.0,0.00027397,2]
[377469561,1754419841192,-460.0,0.00027397,2]
[377469562,1754419841201,-460.0,0.00027397,2]
[377469563,1754419841210,-460.0,0.00027397,2]
[377469564,1754419841219,-397.66791388,0.00027397,2]
[377469565,1754419841229,-460.0,0.00027397,2]
[377469566,1754419841239,-460.0,0.00027397,2]
[377469567,1754419841249,-460.0,0.00027397,2]
[377469568,1754419841258,-460.0,0.00027397,2]
[377469569,1754419841268,-460.0,0.00027397,2]
[377469570,1754419841277,-460.0,0.00027397,2]
[377469571,1754419841286,-460.0,0.00027397,2]
[377469572,1754419841296,-460.0,0.00027397,2]
[377469573,1754419841305,-3997.23,0.00027397,2]
[377469574,1754419841315,-579.23,0.00027397,2]
[377469575,1754419841324,-460.0,0.00027397,2]
[377469576,1754419841333,-533.32931653,0.00027397,2]
[377469577,1754419841343,-460.0,0.00027397,2]
[377469578,1754419841353,-674.09,0.00027397,2]
[377469579,1754419841368,-225.23990959,0.00027397,2]
[377469580,1754419841377,-460.0,0.00027397,2]
[377469581,1754419841386,-460.0,0.00027397,2]
[377469582,1754419841396,-468.56722548,0.00027397,2]
[377469583,1754419841406,-460.0,0.00027397,2]
[377469584,1754419841416,-516.72,0.00027397,2]
[377469585,1754419841425,-460.0,0.00027397,2]
[377469586,1754419841436,-1204.67,0.00027397,2]
[377469587,1754419841445,-460.0,0.00027397,2]
[377469588,1754419841454,-460.0,0.00027397,2]
[377469589,1754419841464,-460.0,0.00027397,2]
[377469590,1754419841473,-460.0,0.00027397,2]
[377469591,1754419841482,-460.0,0.00027397,2]
[377469592,1754419841491,-460.0,0.00027397,2]
[377469593,1754419841501,-460.0,0.00027397,2]
[377469594,1754419841510,-664.72,0.00027397,2]
[377469595,1754419841519,-810.88,0.00027397,2]
[377469596,1754419841528,-460.0,0.00027397,2]
[377469597,1754419841537,-477.36,0.00027397,2]
[377469598,1754419841546,-460.0,0.00027397,2]
[377469599,1754419841555,-472.66323559,0.00027397,2]
[377469600,1754419841564,-460.0,0.00027397,2]
[377469601,1754419841574,-460.0,0.00027397,2]
[377469602,1754419841583,-460.0,0.00027397,2]
[377469603,1754419841592,-460.0,0.00027397,2]
[377469604,1754419841601,-536.79,0.00027397,2]
[377469605,1754419841610,-3520.2027804,0.00027413,2]
[377469606,1754419841622,-2000.0,0.00027416,5]
[377469607,1754419841631,-3124.35654842,0.00027433,2]
[377469608,1754419841640,-460.0,0.0002767,2]
[377469609,1754419841649,-488.64,0.0002767,2]
[377469610,1754419841658,-460.0,0.0002767,2]
[377469611,1754419841668,-584.84112226,0.00027671,2]
[377469612,1754419841677,-460.0,0.00027671,2]
[377469613,1754419841686,-460.0,0.00027671,2]
[377469614,1754419841695,-460.0,0.00027671,2]
[377469615,1754419841704,-473.52161975,0.00027671,2]
[377469616,1754419841713,-194.54,0.00027671,2]
[377469617,1754419841722,-460.0,0.00027671,2]
[377469618,1754419841732,-460.0,0.00027671,2]
[377469619,1754419841742,-460.0,0.00027671,2]
[377469620,1754419841753,-460.36,0.00027671,2]
[377469621,1754419841763,-460.0,0.00027671,2]
[377469622,1754419841773,-460.0,0.00027671,2]
[377469623,1754419841783,-801.41,0.00027671,2]
[377469624,1754419841794,-460.0,0.00027671,2]
[377469625,1754419841804,-460.0,0.00027671,2]
[377469626,1754419841814,-460.0,0.00027671,2]
[377469627,1754419841825,-789.85,0.00027671,2]
[377469628,1754419841835,-460.0,0.00027671,2]
[377469629,1754419841845,-473.58569009,0.00027671,2]
[377469630,1754419841856,-460.0,0.00027671,2]
[377469631,1754419841870,-460.0,0.00027671,2]
[377469632,1754419841879,-460.0,0.00027671,2]
[377469633,1754419841889,-460.0,0.00027671,2]
[377469634,1754419841898,-460.0,0.00027671,2]
[377469635,1754419841907,-460.0,0.00027671,2]
[377469636,1754419841916,-460.0,0.00027671,2]
[377469637,1754419841925,-460.0,0.00027671,2]
[377469638,1754419841935,-522.33,0.00027671,2]